bitfinex-derivatives/quotes_ETHF0:USTF0_20250902
["timestamp","ask_amount","ask_price","bid_price","bid_amount"]
[1756789602064,1.3175001,4374.2,4374.1,40.90516329]
[1756789602272,1.3175001,4374.2,4374.1,41.13816329]
[1756789602469,0.23457469,4374.2,4374.1,41.13916329]
[1756789602670,0.52037469,4374.2,4374.1,41.13816329]
[1756789603171,1.31747146,4374.2,4374.1,40.90516329]
[1756789603468,1.31747146,4374.2,4374.1,41.13816329]
[1756789604072,1.31748199,4374.2,4374.1,41.13816329]
[1756789605976,0.23455658,4374.2,4374.1,41.13916329]
[1756789606671,0.52035658,4374.2,4374.1,41.13916329]
[1756789606872,0.52228968,4374.2,4374.1,41.13916329]
[1756789608471,0.52228968,4374.2,4374.1,41.13816329]
[1756789609175,0.52228968,4374.2,4374.1,41.13916329]
[1756789609477,1.31941509,4374.2,4374.1,41.13916329]
[1756789609673,1.31941509,4374.2,4374.1,41.13816329]
[1756789609873,0.2858,4373.2,4373.1,3.211]
[1756789610074,0.52232377,4373.2,4373.1,3.212]
[1756789610372,0.52235658,4373.2,4373.1,44.247]
[1756789610972,0.23655658,4373.2,4373.1,44.247]
[1756789611180,1.31948199,4373.2,4373.1,41.0382]
[1756789611372,1.31948199,4373.2,4373.1,41.0366]
[1756789613769,1.31939291,4373.2,4373.1,41.0366]
[1756789614676,1.31951226,4373.2,4373.1,41.0366]
[1756789615483,0.52238685,4373.2,4373.1,41.0366]
[1756789615683,1.31951226,4373.2,4373.1,41.0366]
[1756789617479,1.31951226,4373.2,4373.1,41.0376]
[1756789617777,1.31951226,4373.2,4373.1,41.0366]
[1756789619882,0.23658685,4373.2,4373.1,41.0376]
[1756789620479,0.52238685,4373.2,4373.1,40.8]
[1756789620781,0.52238685,4373.2,4373.1,41.034]
[1756789622979,3.73018685,4373.2,4373.1,41.034]
[1756789623183,3.73024109,4373.2,4373.1,41.034]
[1756789624071,3.7302159,4373.2,4373.1,41.034]
[1756789624587,3.7302159,4373.2,4373.1,41.036]
[1756789625276,3.7302159,4373.2,4373.1,41.034]
[1756789627382,3.7302159,4373.2,4373.1,40.8]
[1756789628176,3.7302159,4373.2,4373.1,41.034]
[1756789630283,3.9397159,4373.2,4373.1,0.0064]
[1756789630590,0.6884,4372.9,4372.8,0.2372]
[1756789630786,1.72214131,4372.9,4372.8,0.2372]
[1756789631088,1.72214131,4372.9,4372.8,0.0064]
[1756789631283,1.72230886,4372.9,4372.8,0.0064]
[1756789631480,1.31970886,4372.9,4372.8,0.0064]
[1756789631681,1.31970886,4372.9,4372.8,0.0074]
[1756789632491,0.23678345,4372.9,4372.8,0.2424]
[1756789632890,0.23669323,4372.9,4372.8,0.2424]
[1756789633086,0.23669323,4372.9,4372.8,4.47108]
[1756789633386,2.519654,4373.1,4373.0,0.0032]
[1756789633592,2.75539947,4373.1,4373.0,0.2382]
[1756789633890,2.75539978,4373.1,4373.0,41.0382]
[1756789635287,2.75713289,4373.1,4373.0,41.0382]
[1756789635488,2.518654,4373.1,4373.0,41.0382]
[1756789636583,2.75709485,4373.1,4373.0,41.0382]
[1756789636895,2.75709485,4373.1,4373.0,49.41334353]
[1756789637187,0.3069,4374.4,4373.3,0.41158]
[1756789637389,0.3069,4374.4,4373.6,3.2078]
[1756789637590,0.23852179,4374.3,4373.7,0.235]
[1756789637791,0.23852179,4374.2,4373.7,0.235]
[1756789637991,0.54542179,4374.1,4373.7,0.235]
[1756789638287,0.23852179,4374.0,4373.7,0.64654]
[1756789638590,0.3069,4374.1,4373.7,0.64654]
[1756789638789,0.23840444,4374.0,4373.7,0.64654]
[1756789638988,0.3069,4374.1,4373.7,0.64654]
[1756789639186,0.23837663,4374.0,4373.7,1.58521353]
[1756789639487,0.3069,4374.5,4373.7,1.58521353]
[1756789639797,0.23830486,4374.4,4374.0,0.93867353]
[1756789639986,0.23830486,4374.3,4374.2,0.93867353]
[1756789640289,3.2078,4375.3,4374.2,41.97367353]
[1756789640486,0.54505197,4375.2,4375.0,0.93867353]
[1756789640794,0.3069,4375.2,4375.1,0.235]
[1756789640986,0.5450565,4375.2,4375.1,0.235]
[1756789641182,0.235,4376.3,4375.1,0.64641]
[1756789641183,0.3069,4375.7,4375.1,0.64641]
[1756789641386,0.3069,4375.7,4375.3,3.2078]
[1756789641387,0.23792046,4375.6,4375.3,3.2078]
[1756789641586,0.5012,4375.9,4375.4,0.235]
[1756789641787,0.23791804,4375.8,4375.4,0.235]
[1756789641983,4.26927353,4376.0,4375.3,3.2078]
[1756789641984,0.3069,4375.4,4375.3,3.2078]
[1756789642192,1.87936717,4375.4,4375.3,0.235]
[1756789642389,0.3069,4375.3,4375.2,40.8]
[1756789642693,4.54459364,4375.3,4375.2,40.8]
[1756789642894,0.3069,4374.8,4374.7,0.235]
[1756789643197,5.08716717,4374.8,4374.7,0.235]
[1756789643390,4.14849364,4374.8,4374.7,41.035]
[1756789643594,0.73889364,4374.8,4374.7,41.035]
[1756789644987,1.67756717,4374.8,4374.7,41.035]
[1756789645388,4.19722117,4374.8,4374.7,41.035]
[1756789646293,4.19709948,4374.8,4374.7,41.035]
[1756789646694,4.39889948,4374.8,4374.7,0.235]
[1756789647089,3.46022595,4374.8,4374.7,0.235]
[1756789649196,3.06412595,4374.8,4374.7,0.235]
[1756789649684,3.06412595,4374.8,4374.7,4.235]
[1756789649685,2.75722595,4374.8,4374.7,4.235]
[1756789649892,2.519654,4374.8,4374.7,48.2428]
[1756789655604,0.1228,4376.5,4375.4,0.41138]
[1756789655904,0.3961,4376.3,4376.2,0.1915]
[1756789656101,3.2078,4376.6,4376.2,0.7632]
[1756789656302,3.4021,4376.6,4376.5,0.3982]
[1756789656502,3.4021,4376.6,4376.5,0.6332]
[1756789657009,3.4021,4376.6,4376.5,41.4332]
[1756789657820,0.703,4376.2,4376.1,0.235]
[1756789658211,4.703,4376.2,4376.1,41.035]
[1756789658411,0.703,4376.2,4376.1,41.035]
[1756789659612,0.703,4376.2,4376.1,40.8]
[1756789659820,0.703,4376.2,4376.1,41.035]
[1756789660117,0.703,4376.2,4376.1,40.8]
[1756789660314,0.703,4376.2,4376.1,41.035]
[1756789660820,0.3069,4376.2,4376.1,41.035]
[1756789661815,3.6985,4376.6,4376.5,0.4056]
[1756789662021,0.4198,4374.5,4373.5,0.1298]
[1756789662220,0.4198,4374.5,4373.6,0.236]
[1756789662221,3.3296,4374.5,4373.6,0.236]
[1756789662422,0.1927,4373.7,4373.6,0.4422]
[1756789662722,0.3853,4373.7,4372.6,3.3376]
[1756789662921,3.5931,4373.3,4373.2,0.2062]
[1756789663222,3.8911,4373.3,4373.2,0.236]
[1756789663419,0.298,4373.2,4373.0,40.8]
[1756789663623,0.6833,4373.2,4373.1,0.236]
[1756789663816,0.6833,4373.2,4373.1,0.4422]
[1756789664520,3.2078,4373.3,4373.1,0.6416]
[1756789664821,3.8911,4373.3,4373.2,0.4056]
[1756789665224,6.410754,4373.3,4373.2,0.4422]
[1756789665921,6.410754,4373.3,4373.2,0.6416]
[1756789666828,6.410754,4373.3,4373.2,0.4056]
[1756789667019,6.410754,4373.3,4373.2,0.6416]
[1756789667325,6.410754,4373.3,4373.2,0.236]
[1756789669316,6.410754,4373.3,4373.2,0.4422]
[1756789669826,6.410754,4373.3,4373.2,0.2062]
[1756789670029,6.410754,4373.3,4373.2,0.4422]
[1756789670523,13.84238195,4373.3,4371.8,0.3106]
[1756789670723,3.2078,4372.4,4372.3,0.2062]
[1756789671024,3.2078,4372.4,4372.3,0.4346]
[1756789671223,3.2078,4372.4,4372.1,41.1106]
[1756789671423,3.2078,4372.4,4372.3,0.237]
[1756789671627,3.44400733,4372.4,4372.3,0.237]
[1756789672228,3.44385658,4372.4,4372.3,0.237]
[1756789673428,3.44385658,4372.4,4372.3,0.5476]
[1756789674227,3.2078,4372.4,4372.3,0.5476]
[1756789675930,3.2078,4372.4,4372.3,0.7538]
[1756789676135,3.2078,4372.4,4372.3,0.9532]
[1756789680837,3.2078,4373.0,4372.5,0.1174]
[1756789681133,3.2078,4373.0,4372.9,0.7162]
[1756789681335,3.2078,4373.0,4372.9,0.9522]
[1756789681535,3.2078,4373.0,4372.4,0.3106]
[1756789681837,3.2078,4372.5,4372.4,0.3106]
[1756789682038,3.2078,4372.5,4372.4,41.3476]
[1756789683145,5.727454,4372.5,4372.4,41.3476]
[1756789686144,5.727454,4372.5,4372.4,41.1106]
[1756789686346,5.727454,4372.5,4372.4,41.3476]
[1756789689147,5.727454,4372.5,4372.4,41.1106]
[1756789689446,5.727454,4372.5,4372.4,41.3466]
[1756789690351,5.96415417,4372.5,4372.4,41.3466]
[1756789691145,9.96415417,4372.5,4372.1,0.3001]
[1756789691448,0.23670017,4372.4,4372.2,0.5361]
[1756789691642,0.23670017,4372.3,4372.2,0.5361]
[1756789693546,1.03502975,4372.3,4372.2,0.5361]
[1756789693741,1.03502975,4372.3,4372.2,0.9349]
[1756789694148,1.03584194,4372.3,4372.2,0.9349]
[1756789695251,3.55549594,4372.3,4372.2,0.9349]
[1756789697254,4.23842057,4372.3,4372.2,0.9349]
[1756789697650,4.00090821,4372.3,4372.2,0.9349]
[1756789697955,2.519654,4372.3,4372.2,0.9349]
[1756789698254,3.43742165,4372.3,4372.2,0.9349]
[1756789698447,3.43742165,4372.3,4372.2,41.4989]
[1756789698648,3.43742165,4372.3,4372.2,41.7349]
[1756789702758,3.43742165,4372.3,4372.2,41.4989]
[1756789702953,3.43742165,4372.3,4372.2,41.7349]
[1756789703153,7.43742165,4372.3,4372.2,0.3001]
[1756789703360,7.43742165,4372.3,4372.2,0.5361]
[1756789705158,7.43769504,4372.3,4372.2,0.5361]
[1756789706059,3.43769504,4372.3,4372.2,0.7375]
[1756789706260,3.43769504,4372.3,4372.2,0.9349]
[1756789708152,3.43769504,4372.3,4372.2,0.5361]
[1756789708356,3.20277368,4372.3,4372.2,0.5361]
[1756789708562,3.43761759,4372.3,4372.2,0.7375]
[1756789708760,3.43761759,4372.3,4372.2,0.9349]
[1756789710567,3.43761759,4372.3,4372.2,41.7349]
[1756789711865,3.43761759,4372.3,4372.2,41.7339]
[1756789712058,3.41475032,4372.3,4372.2,41.7339]
[1756789713566,3.41475032,4372.3,4372.2,41.4989]
[1756789713766,3.41475032,4372.3,4372.2,41.7339]
[1756789716666,3.41475032,4372.3,4372.2,41.4989]
[1756789716868,3.41475032,4372.3,4372.2,41.7339]
[1756789717366,2.73163064,4372.3,4372.2,41.7339]
[1756789719271,2.519654,4372.3,4372.2,45.96261999]
[1756789719468,2.519654,4372.3,4372.2,45.7339]
[1756789719769,2.519654,4372.3,4372.2,46.53222958]
[1756789720358,2.519654,4372.3,4372.2,46.76094957]
[1756789720762,2.519654,4372.3,4372.2,46.53222958]
[1756789721163,3.2078,4373.0,4372.2,46.76094957]
[1756789721473,3.2078,4373.0,4372.9,0.6722]
[1756789721765,3.40559116,4373.0,4372.9,0.9072]
[1756789721971,3.2078,4373.0,4372.9,0.9072]
[1756789723068,3.2078,4373.0,4372.9,41.7072]
[1756789724571,5.727454,4373.0,4372.9,41.7072]
[1756789730772,6.52578358,4373.0,4372.9,41.4722]
[1756789730974,9.727454,4373.0,4372.9,41.086]
[1756789731272,9.727454,4373.0,4372.9,0.234]
[1756789731475,9.91291615,4373.0,4372.9,0.52]
[1756789731773,9.91291615,4373.0,4372.2,0.286]
[1756789731977,4.00612958,4372.3,4372.2,0.4748]
[1756789732175,4.00612958,4372.3,4372.2,0.9062]
[1756789732975,3.2078,4372.3,4372.2,0.9062]
[1756789734479,3.2078,4372.3,4372.2,0.4748]
[1756789734675,3.2078,4372.3,4372.2,0.7088]
[1756789735077,3.2078,4372.3,4372.2,0.9062]
[1756789735280,5.727454,4372.3,4372.2,0.9062]
[1756789735977,5.727454,4372.3,4372.2,1.70452958]
[1756789738481,5.727454,4372.3,4372.2,0.6722]
[1756789738669,5.727454,4372.3,4372.2,1.70452958]
[1756789742877,5.727454,4372.3,4372.2,1.47052958]
[1756789743080,5.727454,4372.3,4372.1,40.8]
[1756789743081,10.52578358,4372.3,4372.1,40.8]
[1756789743386,4.44116135,4372.2,4371.3,0.234]
[1756789743583,4.00612958,4371.4,4371.3,0.234]
[1756789743786,4.21329093,4371.4,4371.3,41.034]
[1756789744381,4.21329093,4371.4,4371.3,41.32]
[1756789745971,3.41496135,4371.4,4371.3,41.32]
[1756789746880,3.41496135,4371.4,4371.3,41.086]
[1756789746881,4.21329093,4371.4,4371.3,41.086]
[1756789747083,4.21329093,4371.4,4371.3,41.32]
[1756789747481,4.21299336,4371.4,4371.3,41.32]
[1756789749385,4.21285549,4371.4,4371.3,41.32]
[1756789755490,3.41452591,4371.4,4371.3,41.32]
[1756789758693,3.4235852,4371.4,4371.3,41.32]
[1756789759494,3.42364661,4371.4,4371.3,41.32]
[1756789759995,3.42365199,4371.4,4371.3,41.32]
[1756789768193,3.42365199,4371.4,4371.3,0.286]
[1756789768402,3.42365199,4371.4,4371.3,0.52]
[1756789768592,3.42365199,4371.4,4371.3,0.9158]
[1756789769292,3.42365199,4371.4,4371.3,0.52]
[1756789769793,3.42365199,4371.4,4371.3,0.6818]
[1756789769998,3.42365199,4371.4,4371.3,0.9158]
[1756789770388,7.42417259,4371.4,4371.3,0.286]
[1756789770593,9.04705718,4371.4,4371.3,0.6818]
[1756789770790,4.10729824,4371.4,4371.3,0.6818]
[1756789770993,4.10729824,4371.4,4371.3,0.286]
[1756789770994,5.04705718,4371.4,4371.3,0.286]
[1756789771698,5.04705718,4371.4,4371.3,0.4754]
[1756789772599,5.28105718,4371.4,4371.3,0.4754]
[1756789773798,4.10729824,4371.4,4371.3,0.9158]
[1756789774101,3.10917259,4371.4,4371.3,4.6298]
[1756789774602,3.10917259,4371.4,4371.3,4.85856]
[1756789774792,3.10917259,4371.4,4371.3,45.4298]
[1756789774991,3.10917259,4371.4,4371.3,41.4298]
[1756789775191,3.42387259,4371.4,4371.3,41.4298]
[1756789775391,3.10917259,4371.4,4371.3,41.4298]
[1756789776103,3.10917259,4371.4,4371.3,41.6926]
[1756789776605,3.10917259,4371.4,4371.3,45.6926]
[1756789777402,0.21637259,4371.4,4371.3,45.6926]
[1756789777593,2.945,4371.9,4371.8,0.3958]
[1756789777796,3.2078,4372.4,4371.8,5.56955894]
[1756789778099,3.2078,4372.4,4371.8,0.6298]
[1756789778295,3.2078,4372.4,4372.3,40.8]
[1756789778501,3.2078,4372.4,4372.3,41.034]
[1756789778803,3.2078,4372.9,4372.3,41.034]
[1756789779005,0.21645172,4372.8,4372.3,41.034]
[1756789779202,0.3147,4373.3,4372.3,41.034]
[1756789779203,0.3147,4373.3,4372.4,0.93975894]
[1756789779503,0.3147,4373.3,4372.3,41.034]
[1756789779504,0.21627027,4373.2,4373.1,0.93975894]
[1756789779694,0.21627027,4373.2,4373.1,1.17375894]
[1756789780208,3.2078,4373.4,4373.1,1.17375894]
[1756789780209,3.5225,4373.4,4373.1,1.17375894]
[1756789780404,0.21605252,4373.3,4373.1,1.17375894]
[1756789780606,3.5225,4373.4,4373.1,1.35603458]
[1756789780909,0.2160523,4373.3,4373.1,1.35603458]
[1756789781205,3.2078,4373.4,4373.1,1.17375894]
[1756789781406,0.21591185,4373.3,4373.1,1.17375894]
[1756789781605,0.303,4373.2,4373.1,1.17375894]
[1756789783210,0.303,4373.2,4373.1,1.17375815]
[1756789784108,0.303,4373.2,4373.1,0.234]
[1756789784309,0.303,4373.2,4373.1,1.17375894]
[1756789785907,3.2078,4373.4,4373.1,1.17375894]
[1756789786111,0.303,4373.3,4373.1,1.17375894]
[1756789786307,3.2078,4373.4,4373.1,1.17375894]
[1756789786504,0.303,4373.3,4373.2,40.8]
[1756789787611,0.303,4373.3,4373.2,41.034]
[1756789787912,0.303,4373.2,4371.4,32.949]
[1756789788213,0.1204,4373.5,4371.4,32.949]
[1756789788214,0.303,4372.7,4372.6,0.93975894]
[1756789788414,0.303,4372.7,4372.6,41.97375894]
[1756789789610,0.303,4372.7,4372.6,41.034]
[1756789789807,0.303,4372.7,4372.6,40.8]
[1756789790017,0.303,4372.7,4372.6,41.035]
[1756789794516,0.303,4372.7,4372.6,41.97475894]
[1756789794815,3.2078,4373.0,4372.6,41.97475894]
[1756789795119,3.2078,4373.0,4372.9,0.93975894]
[1756789795318,3.2078,4373.0,4372.9,1.17475894]
[1756789796914,5.727454,4373.0,4372.9,1.17475894]
[1756789798312,2.519654,4373.0,4372.9,1.17475894]
[1756789798819,2.519654,4373.0,4372.9,41.97475894]
[1756789800821,2.822654,4373.0,4372.9,41.97375894]
[1756789801423,2.822654,4373.0,4372.9,41.034]
[1756789801817,2.943054,4373.0,4372.9,40.8]
[1756789802018,2.943054,4373.0,4372.9,41.034]
[1756789802518,10.150854,4373.0,4372.9,41.034]
[1756789802716,10.150854,4373.0,4372.9,41.035]
[1756789802916,10.36572807,4373.0,4372.9,41.035]
[1756789803732,0.3961,4372.2,4372.1,0.93975894]
[1756789803934,0.6991,4372.2,4372.1,1.17475894]
[1756789804136,0.6991,4372.2,4372.1,41.97475894]
[1756789804326,0.303,4372.2,4372.1,41.97475894]
[1756789805233,3.2078,4372.4,4372.1,41.97475894]
[1756789805434,0.303,4372.3,4372.1,41.97475894]
[1756789805831,3.2078,4372.4,4372.1,41.97475894]
[1756789806032,0.303,4373.1,4372.3,1.35142894]
[1756789806233,0.21543027,4373.0,4372.4,0.235]
[1756789806434,0.303,4373.1,4372.4,0.235]
[1756789806732,0.303,4373.1,4372.5,40.8]
[1756789806933,3.2078,4373.2,4372.6,0.235]
[1756789807128,0.21560291,4373.1,4372.6,0.235]
[1756789807329,0.303,4373.0,4372.6,0.235]
[1756789807534,0.303,4373.0,4372.9,0.93975894]
[1756789807734,0.303,4373.0,4372.9,1.17475894]
[1756789807933,3.2078,4373.2,4372.9,1.17475894]
[1756789808131,3.2078,4373.2,4373.1,40.8]
[1756789808329,3.2078,4373.2,4373.1,41.034]
[1756789808330,3.42339081,4373.2,4373.1,41.034]
[1756789808730,3.2078,4373.2,4373.1,41.034]
[1756789809939,3.2078,4373.7,4373.1,41.034]
[1756789810134,0.303,4373.5,4373.4,0.93975894]
[1756789810335,0.303,4373.5,4373.4,1.17375894]
[1756789811940,2.822654,4373.5,4373.4,0.234]
[1756789812240,2.822654,4373.5,4373.4,1.17375894]
[1756789815535,2.519654,4373.5,4373.4,5.17375894]
[1756789815736,2.98759855,4374.3,4374.2,0.4058]
[1756789816040,2.98759855,4374.3,4374.2,1.72795894]
[1756789816241,2.98759855,4374.3,4374.2,42.52795894]
[1756789817036,3.2078,4375.3,4374.3,0.1484]
[1756789817236,0.61492711,4375.2,4375.1,0.4058]
[1756789817443,0.61492711,4375.2,4375.1,0.6398]
[1756789817633,0.48772711,4375.2,4375.1,0.6398]
[1756789817836,0.4926,4375.2,4375.1,0.6398]
[1756789818232,0.2872,4375.2,4375.1,0.7882]
[1756789818439,0.2872,4375.2,4375.1,1.58508824]
[1756789819247,0.4926,4375.2,4375.1,1.58508824]
[1756789819647,0.2872,4375.2,4375.1,1.58508824]
[1756789822146,3.2078,4375.9,4375.1,1.58508824]
[1756789822346,3.9094,4375.9,4375.8,0.79688824]
[1756789822544,3.9094,4375.9,4375.8,1.03088824]
[1756789822743,3.9094,4375.9,4375.8,41.83088824]
[1756789822946,3.7004,4375.9,4375.8,41.83088824]
[1756789823842,0.4926,4375.9,4375.8,41.83088824]
[1756789828145,0.4926,4375.9,4375.8,42.62777648]
[1756789828450,0.4926,4375.9,4375.8,41.97868824]
[1756789832643,0.4926,4375.9,4375.8,40.8]
[1756789832848,3.7004,4375.9,4375.8,40.8]
[1756789833050,3.7004,4375.9,4375.8,41.034]
[1756789833353,7.7004,4375.9,4375.8,41.034]
[1756789833753,7.9094,4375.9,4375.8,0.234]
[1756789834050,0.2872,4375.8,4374.6,33.0778]
[1756789834253,0.7016,4374.8,4374.7,41.2407]
[1756789834454,0.7016,4374.8,4374.7,42.03758824]
[1756789835155,0.7016,4374.8,4374.7,41.2407]
[1756789835352,3.012254,4374.8,4374.7,42.03758824]
[1756789835653,2.806854,4374.8,4374.7,42.18538824]
[1756789836357,2.806854,4374.8,4374.7,41.2407]
[1756789836658,2.806854,4374.8,4374.7,40.8]
[1756789836854,2.806854,4374.8,4374.7,41.034]
[1756789839960,2.806854,4374.8,4374.7,40.8]
[1756789840159,2.806854,4374.8,4374.7,41.034]
[1756789842159,2.806854,4374.8,4374.7,41.182]
[1756789842556,2.806854,4374.8,4374.7,41.034]
[1756789844452,0.3027,4374.7,4373.4,0.148]
[1756789844651,6.748234,4374.8,4373.6,1.18778824]
[1756789844652,3.9033,4373.7,4373.6,1.18778824]
[1756789845054,3.9033,4373.7,4373.6,41.98778824]
[1756789845254,3.9033,4373.7,4373.6,40.8]
[1756789845766,4.09947518,4373.7,4373.6,40.8]
[1756789846266,3.9033,4373.7,4373.6,40.8]
[1756789848359,3.9033,4373.7,4372.4,0.3909]
[1756789848360,0.494,4372.5,4372.4,0.3909]
[1756789848559,0.3027,4372.5,4372.4,1.33578824]
[1756789848762,0.3027,4372.5,4372.4,42.36978824]
[1756789848961,3.2078,4372.6,4372.5,0.148]
[1756789849263,3.7018,4372.6,4372.5,1.18778824]
[1756789849461,3.9033,4372.6,4372.5,1.18778824]
[1756789849655,3.2078,4372.6,4372.5,1.33578824]
[1756789850158,3.7018,4372.6,4372.5,0.5389]
[1756789850364,6.221454,4372.6,4372.5,1.42178824]
[1756789850865,6.221454,4372.6,4372.5,1.56978824]
[1756789851367,5.727454,4372.6,4372.5,1.56978824]
[1756789853259,6.030154,4372.6,4372.5,1.56978824]
[1756789853859,5.727454,4372.6,4372.5,1.56978824]
[1756789854260,6.030154,4372.6,4372.5,1.56978824]
[1756789855365,6.221454,4372.6,4372.5,1.56978824]
[1756789856566,0.423,4372.5,4372.4,40.8]
[1756789856772,0.423,4372.5,4372.4,41.83088824]
[1756789857466,0.3027,4372.5,4372.4,41.83088824]
[1756789858570,0.3027,4372.5,4372.4,41.97888824]
[1756789858760,0.3027,4372.5,4372.4,41.034]
[1756789858965,0.3027,4372.5,4372.4,41.83088824]
[1756789860370,2.822354,4372.5,4372.4,41.83088824]
[1756789862871,2.822354,4372.5,4372.4,41.97908824]
[1756789863073,2.519654,4372.5,4372.4,41.97908824]
[1756789864570,2.822354,4372.5,4372.4,41.97908824]
[1756789865164,2.519654,4372.5,4372.4,41.97908824]
[1756789865875,2.822354,4372.5,4372.4,41.74508824]
[1756789866076,2.822354,4372.5,4372.4,41.97908824]
[1756789866273,2.519654,4372.5,4372.4,41.97908824]
[1756789866967,2.519654,4372.5,4372.4,46.20778824]
[1756789867179,3.2078,4373.1,4373.0,0.5391]
[1756789867374,0.5131,4373.0,4372.9,0.79688824]
[1756789867579,0.5131,4373.0,4372.9,1.22338824]
[1756789867976,0.8158,4373.0,4372.9,42.02338824]
[1756789868176,0.8158,4373.0,4372.9,41.034]
[1756789869981,0.8158,4373.0,4372.9,40.8]
[1756789870177,0.8158,4373.0,4372.9,41.034]
[1756789870482,0.8158,4373.0,4371.7,33.33473]
[1756789870483,0.3027,4372.2,4371.9,0.79688824]
[1756789870684,0.6955,4372.2,4372.1,0.1925]
[1756789870980,0.3928,4372.2,4372.1,41.034]
[1756789871579,0.703,4372.2,4372.1,41.034]
[1756789872882,3.2078,4372.4,4372.3,0.4068]
[1756789873083,3.2078,4372.4,4372.3,1.58598824]
[1756789873586,3.518,4372.4,4372.3,1.58598824]
[1756789873883,3.7188,4372.9,4372.8,0.1987]
[1756789874086,3.518,4372.9,4372.8,1.58598824]
[1756789874288,3.7144597,4372.9,4372.8,1.58598824]
[1756789874489,3.7144597,4372.9,4372.8,40.8]
[1756789874687,3.7144597,4372.9,4372.8,41.034]
[1756789874896,3.7144597,4372.9,4372.8,40.8]
[1756789875200,0.715,4372.3,4371.8,0.79688824]
[1756789875492,3.9228,4371.9,4371.8,1.20368824]
[1756789875692,3.9228,4371.9,4371.8,1.43768824]
[1756789876196,3.9228,4371.9,4371.8,42.23768824]
[1756789876494,3.9228,4371.9,4371.8,42.02958824]
[1756789877084,3.2078,4371.9,4371.8,42.02958824]
[1756789877285,0.715,4372.7,4372.6,0.4068]
[1756789877493,0.715,4372.7,4372.6,0.234]
[1756789877494,0.91038894,4372.7,4372.6,0.234]
[1756789878695,0.91038894,4372.7,4372.6,41.034]
[1756789878996,0.50558894,4372.7,4372.6,42.12130501]
[1756789879591,0.50558894,4372.7,4372.6,41.97300501]
[1756789879992,0.19538894,4372.7,4372.6,42.12130501]
[1756789880196,2.519654,4372.8,4372.7,0.4068]
[1756789880398,0.3102,4372.8,4372.7,0.5551]
[1756789880794,3.2078,4373.4,4373.2,0.4068]
[1756789880999,3.2078,4373.4,4373.3,1.57980501]
[1756789881191,3.40324529,4373.4,4373.3,1.57980501]
[1756789881395,4.11819754,4373.4,4373.3,0.1987]
[1756789881599,4.11819754,4373.4,4373.3,0.234]
[1756789882692,4.11819754,4373.4,4373.3,0.4327]
[1756789882893,4.11819754,4373.4,4373.3,0.6408]
[1756789883094,3.9228,4373.4,4373.3,0.6408]
[1756789883497,3.518,4373.4,4373.3,41.5891]
[1756789883696,3.2078,4373.4,4373.3,41.5891]
[1756789886710,3.518,4373.4,4373.3,41.4408]
[1756789887008,3.518,4373.4,4373.3,41.2327]
[1756789887709,0.3102,4373.4,4373.3,41.2327]
[1756789887908,0.3102,4373.4,4373.3,41.381]
[1756789888909,3.3213,4374.0,4373.3,41.381]
[1756789889109,0.70624563,4373.9,4373.8,0.4068]
[1756789889312,0.91024563,4373.9,4373.8,0.6408]
[1756789890105,0.715,4373.9,4373.8,0.6408]
[1756789890313,3.234654,4373.9,4373.8,0.6408]
[1756789890910,3.234654,4373.9,4373.8,41.4408]
[1756789893515,2.829854,4373.9,4373.8,41.5891]
[1756789894014,2.27818696,4373.9,4373.8,48.84917316]
[1756789894312,3.7188,4374.5,4374.4,0.4068]
[1756789894615,3.7188,4374.5,4374.4,0.6408]
[1756789894812,0.3102,4374.4,4373.5,3.3561]
[1756789895012,0.94362,4374.4,4374.3,40.8]
[1756789895313,3.9228,4374.4,4374.3,41.034]
[1756789895513,4.34647818,4374.4,4374.3,41.034]
[1756789895714,4.11786818,4374.4,4374.3,41.034]
[1756789895916,1.13867818,4374.4,4374.3,41.034]
[1756789896109,4.11786818,4374.4,4374.3,41.034]
[1756789898716,0.2008,4372.7,4372.6,0.4068]
[1756789899017,0.511,4372.7,4372.6,0.6408]
[1756789899217,0.511,4372.7,4372.6,41.4408]
[1756789901716,3.2078,4373.0,4372.9,0.5582]
[1756789901917,3.2078,4373.7,4372.9,0.7922]
[1756789902115,0.19511575,4373.6,4372.9,0.7922]
[1756789902315,3.2078,4373.7,4372.9,0.7922]
[1756789902511,0.313,4373.5,4372.9,0.7922]
[1756789902717,3.2078,4373.7,4373.4,0.4014]
[1756789902914,0.5216,4373.6,4373.5,0.6354]
[1756789903311,0.313,4373.6,4373.5,0.7922]
[1756789903514,2.519654,4373.6,4373.5,41.5922]
[1756789904421,2.832654,4373.6,4373.5,41.5922]
[1756789908222,3.02828894,4373.6,4373.5,41.5922]
[1756789914031,2.71528894,4373.6,4373.5,41.5922]
[1756789914233,2.519654,4373.6,4373.5,41.5922]
[1756789914731,2.519654,4373.6,4373.5,45.5922]
[1756789916136,2.519654,4373.6,4373.5,41.5922]
[1756789923035,0.1232,4375.5,4373.5,41.5922]
[1756789923036,0.2086,4374.3,4374.2,0.1495]
[1756789923250,0.5216,4374.3,4374.2,0.6354]
[1756789923447,2.89480001,4374.7,4374.2,0.7849]
[1756789923647,3.41640001,4374.7,4374.6,0.4014]
[1756789923937,0.73074248,4374.7,4374.6,0.6354]
[1756789924145,0.73074248,4374.7,4374.6,0.7849]
[1756789924446,0.5216,4374.7,4374.6,0.7849]
[1756789925544,0.5216,4374.7,4374.6,4.04497316]
[1756789926043,0.5216,4375.3,4375.2,0.4014]
[1756789926238,0.73065761,4375.3,4375.2,0.6354]
[1756789926543,0.313,4375.3,4375.2,0.7849]
[1756789926947,0.313,4375.3,4375.2,41.5849]